[Event "Titled Tuesday Blitz September 20 Late 2022"]
[White "Xiong, Jeffery"]
[Black "Lenderman, Aleksandr"]
[WhiteFideId "2047640"]
[BlackFideId "2021285"]
[WhiteElo "2997"]
[BlackElo "2961"]
[Result "1-0"]
[Round "10"]
[TimeControl "180+1"]
[Date "2022.09.20"]
[WhiteClock "0:01:31"]
[BlackClock "0:01:03"]

1. e4 {[%clk 0:03:00]}  e6 {[%clk 0:02:59]} 2. d4 {[%clk 0:03:01]}  d5 {[%clk 0:02:59]} 3. e5 {[%clk 0:03:02]}  c5 {[%clk 0:02:59]} 4. c3 {[%clk 0:03:03]}  Nc6 {[%clk 0:02:59]} 5. Nf3 {[%clk 0:03:03]}  Bd7 {[%clk 0:03:00]} 6. Be2 {[%clk 0:03:04]}  Nge7 {[%clk 0:02:54]} 7. Na3 {[%clk 0:03:04]}  cxd4 {[%clk 0:02:54]} 8. cxd4 {[%clk 0:03:05]}  Nf5 {[%clk 0:02:55]} 9. Nc2 {[%clk 0:03:06]}  f6 {[%clk 0:02:55]} 10. g4 {[%clk 0:02:56]}  Nfe7 {[%clk 0:02:53]} 11. exf6 {[%clk 0:02:56]}  gxf6 {[%clk 0:02:53]} 12. h4 {[%clk 0:02:57]}  Bg7 {[%clk 0:02:52]} 13. Be3 {[%clk 0:02:54]}  O-O {[%clk 0:02:52]} 14. Qd2 {[%clk 0:02:54]}  e5 {[%clk 0:02:50]} 15. h5 {[%clk 0:02:51]}  e4 {[%clk 0:02:47]} 16. Nh4 {[%clk 0:02:51]}  f5 {[%clk 0:02:42]} 17. h6 {[%clk 0:02:45]}  Bf6 {[%clk 0:02:42]} 18. gxf5 {[%clk 0:02:32]}  Nxf5 {[%clk 0:02:38]} 19. Nxf5 {[%clk 0:02:33]}  Bxf5 {[%clk 0:02:39]} 20. O-O-O {[%clk 0:02:33]}  Kh8 {[%clk 0:02:39]} 21. Kb1 {[%clk 0:02:33]}  Qe7 {[%clk 0:02:35]} 22. Ka1 {[%clk 0:02:30]}  Rg8 {[%clk 0:02:35]} 23. Bf4 {[%clk 0:02:24]}  a5 {[%clk 0:02:31]} 24. Bb5 {[%clk 0:02:18]}  Nb4 {[%clk 0:02:29]} 25. Ne3 {[%clk 0:02:15]}  Be6 {[%clk 0:02:29]} 26. Rc1 {[%clk 0:02:08]}  Rgc8 {[%clk 0:02:24]} 27. a3 {[%clk 0:02:08]}  Nc6 {[%clk 0:02:24]} 28. Bxc6 {[%clk 0:01:45]}  bxc6 {[%clk 0:02:23]} 29. f3 {[%clk 0:01:37]}  exf3 {[%clk 0:02:19]} 30. Rhf1 {[%clk 0:01:38]}  Rf8 {[%clk 0:02:13]} 31. Rxf3 {[%clk 0:01:37]}  Bd7 {[%clk 0:02:13]} 32. Rcf1 {[%clk 0:01:35]}  Rae8 {[%clk 0:02:08]} 33. Qh2 {[%clk 0:01:34]}  Bxd4 {[%clk 0:01:13]} 34. Be5+ {[%clk 0:01:33]}  Bxe5 {[%clk 0:01:10]} 35. Qxe5+ {[%clk 0:01:33]}  Qxe5 {[%clk 0:01:02]} 36. Rxf8+ {[%clk 0:01:32]}  Rxf8 {[%clk 0:01:03]} 37. Rxf8# {[%clk 0:01:31]} 1-0


[Site "https://www.chess.com"]

[Event "Titled Tuesday Blitz September 20 Late 2022"]
[White "Yanchenko, Roman"]
[Black "Tari, Aryan"]
[WhiteFideId "4137329"]
[BlackFideId "1510045"]
[WhiteElo "2514"]
[BlackElo "2612"]
[Result "0-1"]
[Round "10"]
[TimeControl "180+1"]
[Date "2022.09.20"]
[WhiteClock "0:00:03"]
[BlackClock "0:00:01"]

1. d4 {[%clk 0:03:00]}  Nf6 {[%clk 0:02:58]} 2. c4 {[%clk 0:03:01]}  e6 {[%clk 0:02:59]} 3. Nf3 {[%clk 0:03:01]}  a6 {[%clk 0:02:57]} 4. Bf4 {[%clk 0:03:00]}  b5 {[%clk 0:02:56]} 5. e3 {[%clk 0:03:01]}  Bb7 {[%clk 0:02:55]} 6. c5 {[%clk 0:02:56]}  d6 {[%clk 0:02:52]} 7. b4 {[%clk 0:02:55]}  Nd5 {[%clk 0:02:50]} 8. a4 {[%clk 0:02:44]}  Nxf4 {[%clk 0:02:41]} 9. exf4 {[%clk 0:02:42]}  dxc5 {[%clk 0:02:41]} 10. bxc5 {[%clk 0:02:10]}  b4 {[%clk 0:02:02]} 11. a5 {[%clk 0:02:04]}  Be7 {[%clk 0:01:39]} 12. Qa4+ {[%clk 0:01:56]}  Bc6 {[%clk 0:01:32]} 13. Qxb4 {[%clk 0:01:54]}  Bxf3 {[%clk 0:01:32]} 14. gxf3 {[%clk 0:01:54]}  O-O {[%clk 0:01:28]} 15. Nd2 {[%clk 0:00:38]}  Nc6 {[%clk 0:01:26]} 16. Qa4 {[%clk 0:00:38]}  Nxd4 {[%clk 0:01:19]} 17. Rd1 {[%clk 0:00:27]}  Rb8 {[%clk 0:01:01]} 18. Bd3 {[%clk 0:00:27]}  Bxc5 {[%clk 0:00:58]} 19. O-O {[%clk 0:00:26]}  Qh4 {[%clk 0:00:58]} 20. Qc4 {[%clk 0:00:19]}  Bd6 {[%clk 0:00:48]} 21. Ne4 {[%clk 0:00:07]}  Nxf3+ {[%clk 0:00:43]} 22. Kg2 {[%clk 0:00:08]}  Qg4+ {[%clk 0:00:42]} 23. Ng3 {[%clk 0:00:08]}  Nh4+ {[%clk 0:00:42]} 24. Kg1 {[%clk 0:00:08]}  Rb4 {[%clk 0:00:38]} 25. Qc6 {[%clk 0:00:08]}  Rxf4 {[%clk 0:00:35]} 26. Be2 {[%clk 0:00:09]}  Qh3 {[%clk 0:00:32]} 27. Qxa6 {[%clk 0:00:08]}  Rf3 {[%clk 0:00:27]} 28. Qc6 {[%clk 0:00:07]}  Bxg3 {[%clk 0:00:12]} 29. fxg3 {[%clk 0:00:03]}  Qg2# {[%clk 0:00:01]} 0-1


[Site "https://www.chess.com"]

[Event "Titled Tuesday Blitz September 20 Late 2022"]
[White "Bjelobrk, Igor"]
[Black "Maksimovic, Bojan"]
[WhiteFideId "4300726"]
[BlackFideId "14408120"]
[WhiteElo "2669"]
[BlackElo "2869"]
[Result "0-1"]
[Round "11"]
[TimeControl "180+1"]
[Date "2022.09.20"]
[WhiteClock "0:00:22"]
[BlackClock "0:00:04"]

1. c4 {[%clk 0:03:00]}  Nf6 {[%clk 0:03:00]} 2. g3 {[%clk 0:02:59]}  g6 {[%clk 0:03:00]} 3. Bg2 {[%clk 0:02:59]}  Bg7 {[%clk 0:03:01]} 4. Nc3 {[%clk 0:02:58]}  O-O {[%clk 0:03:02]} 5. d4 {[%clk 0:02:57]}  d6 {[%clk 0:03:02]} 6. Nf3 {[%clk 0:02:57]}  Nc6 {[%clk 0:03:03]} 7. O-O {[%clk 0:02:55]}  Bg4 {[%clk 0:03:03]} 8. d5 {[%clk 0:02:50]}  Na5 {[%clk 0:03:03]} 9. b3 {[%clk 0:02:48]}  c5 {[%clk 0:02:55]} 10. dxc6 {[%clk 0:02:48]}  Nxc6 {[%clk 0:02:55]} 11. Be3 {[%clk 0:02:45]}  Qa5 {[%clk 0:02:47]} 12. Rc1 {[%clk 0:02:44]}  Qh5 {[%clk 0:02:44]} 13. Nd5 {[%clk 0:02:41]}  Nxd5 {[%clk 0:02:42]} 14. cxd5 {[%clk 0:02:40]}  Ne5 {[%clk 0:02:35]} 15. Rc7 {[%clk 0:02:39]}  Rac8 {[%clk 0:01:17]} 16. Rxb7 {[%clk 0:02:31]}  Rc3 {[%clk 0:01:16]} 17. Rxa7 {[%clk 0:02:26]}  Rxe3 {[%clk 0:00:44]} 18. fxe3 {[%clk 0:02:25]}  Bh6 {[%clk 0:00:32]} 19. Qd2 {[%clk 0:02:15]}  Bd7 {[%clk 0:00:31]} 20. Nxe5 {[%clk 0:01:58]}  Qxe5 {[%clk 0:00:32]} 21. Rf4 {[%clk 0:01:56]}  Bb5 {[%clk 0:00:18]} 22. Kf2 {[%clk 0:01:49]}  Rc8 {[%clk 0:00:15]} 23. a4 {[%clk 0:01:44]}  Be8 {[%clk 0:00:15]} 24. Qd4 {[%clk 0:01:36]}  Bxf4 {[%clk 0:00:14]} 25. gxf4 {[%clk 0:01:35]}  Qh5 {[%clk 0:00:14]} 26. Rxe7 {[%clk 0:01:15]}  Qh4+ {[%clk 0:00:14]} 27. Kf3 {[%clk 0:01:15]}  Qxe7 {[%clk 0:00:15]} 28. Kg3 {[%clk 0:00:57]}  Bd7 {[%clk 0:00:12]} 29. h4 {[%clk 0:00:55]}  Re8 {[%clk 0:00:12]} 30. e4 {[%clk 0:00:54]}  f5 {[%clk 0:00:12]} 31. a5 {[%clk 0:00:47]}  fxe4 {[%clk 0:00:10]} 32. b4 {[%clk 0:00:47]}  e3 {[%clk 0:00:06]} 33. a6 {[%clk 0:00:46]}  Bb5 {[%clk 0:00:06]} 34. a7 {[%clk 0:00:44]}  Bxe2 {[%clk 0:00:06]} 35. Bh3 {[%clk 0:00:44]}  Bg4 {[%clk 0:00:02]} 36. Bxg4 {[%clk 0:00:44]}  e2 {[%clk 0:00:03]} 37. Bxe2 {[%clk 0:00:29]}  Qxe2 {[%clk 0:00:04]} 38. a8=Q {[%clk 0:00:25]}  Rxa8 {[%clk 0:00:04]} 39. Qc3 {[%clk 0:00:22]}  Re8 {[%clk 0:00:04]} 0-1


[Site "https://www.chess.com"]

[Event "Titled Tuesday Blitz September 20 Late 2022"]
[White "Estrada Nieto, Julian"]
[Black "Cukrowski, Filip"]
[WhiteFideId "5101018"]
[BlackFideId "1171097"]
[WhiteElo "2252"]
[BlackElo "2093"]
[Result "0-1"]
[Round "11"]
[TimeControl "180+1"]
[Date "2022.09.20"]
[WhiteClock "0:00:06"]
[BlackClock "0:01:10"]

1. e4 {[%clk 0:03:00]}  e6 {[%clk 0:02:57]} 2. d4 {[%clk 0:03:00]}  d5 {[%clk 0:02:58]} 3. Nd2 {[%clk 0:03:01]}  dxe4 {[%clk 0:02:58]} 4. Nxe4 {[%clk 0:03:00]}  Nd7 {[%clk 0:02:59]} 5. Nf3 {[%clk 0:02:59]}  a6 {[%clk 0:02:59]} 6. g3 {[%clk 0:02:58]}  c5 {[%clk 0:02:58]} 7. Bg2 {[%clk 0:02:54]}  Ngf6 {[%clk 0:02:57]} 8. Nxf6+ {[%clk 0:02:53]}  Nxf6 {[%clk 0:02:56]} 9. O-O {[%clk 0:02:42]}  Be7 {[%clk 0:02:55]} 10. dxc5 {[%clk 0:02:34]}  Qxd1 {[%clk 0:02:53]} 11. Rxd1 {[%clk 0:02:34]}  Bxc5 {[%clk 0:02:53]} 12. Ne5 {[%clk 0:02:29]}  Ke7 {[%clk 0:02:46]} 13. Be3 {[%clk 0:02:25]}  Bxe3 {[%clk 0:02:42]} 14. fxe3 {[%clk 0:02:25]}  Rb8 {[%clk 0:02:32]} 15. Rd4 {[%clk 0:02:08]}  Nd7 {[%clk 0:02:29]} 16. Nxd7 {[%clk 0:01:54]}  Bxd7 {[%clk 0:02:30]} 17. Rad1 {[%clk 0:01:53]}  Rhd8 {[%clk 0:02:20]} 18. Kf2 {[%clk 0:01:34]}  b6 {[%clk 0:02:19]} 19. c4 {[%clk 0:01:25]}  e5 {[%clk 0:02:10]} 20. Rd6 {[%clk 0:01:18]}  Be6 {[%clk 0:02:03]} 21. Rxd8 {[%clk 0:01:14]}  Rxd8 {[%clk 0:02:04]} 22. Rxd8 {[%clk 0:01:15]}  Kxd8 {[%clk 0:02:05]} 23. b3 {[%clk 0:01:13]}  Kc7 {[%clk 0:02:01]} 24. Ke2 {[%clk 0:01:11]}  Kd6 {[%clk 0:02:00]} 25. Kd3 {[%clk 0:01:10]}  a5 {[%clk 0:01:57]} 26. Kc3 {[%clk 0:01:09]}  f5 {[%clk 0:01:44]} 27. a3 {[%clk 0:01:09]}  g5 {[%clk 0:01:43]} 28. b4 {[%clk 0:01:08]}  axb4+ {[%clk 0:01:42]} 29. axb4 {[%clk 0:01:01]}  h5 {[%clk 0:01:40]} 30. Bf3 {[%clk 0:00:48]}  Bf7 {[%clk 0:01:29]} 31. h4 {[%clk 0:00:40]}  f4 {[%clk 0:01:17]} 32. exf4 {[%clk 0:00:36]}  exf4 {[%clk 0:01:15]} 33. gxf4 {[%clk 0:00:29]}  gxh4 {[%clk 0:01:14]} 34. Kd4 {[%clk 0:00:26]}  h3 {[%clk 0:01:09]} 35. c5+ {[%clk 0:00:19]}  bxc5+ {[%clk 0:01:09]} 36. bxc5+ {[%clk 0:00:20]}  Kc7 {[%clk 0:01:09]} 37. Ke5 {[%clk 0:00:18]}  h2 {[%clk 0:01:09]} 38. Kf6 {[%clk 0:00:15]}  Be8 {[%clk 0:01:08]} 39. Kg5 {[%clk 0:00:15]}  Bc6 {[%clk 0:01:08]} 40. Bxc6 {[%clk 0:00:04]}  Kxc6 {[%clk 0:01:09]} 41. f5 {[%clk 0:00:04]}  h1=Q {[%clk 0:01:08]} 42. f6 {[%clk 0:00:05]}  Qf3 {[%clk 0:01:09]} 43. Kg6 {[%clk 0:00:05]}  h4 {[%clk 0:01:09]} 44. f7 {[%clk 0:00:05]}  Kd7 {[%clk 0:01:09]} 45. Kg7 {[%clk 0:00:06]}  Ke7 {[%clk 0:01:09]} 46. c6 {[%clk 0:00:05]}  Qxf7+ {[%clk 0:01:09]} 47. Kh8 {[%clk 0:00:06]}  Kf6 {[%clk 0:01:09]} 48. c7 {[%clk 0:00:06]}  Qg7# {[%clk 0:01:10]} 0-1


[Site "https://www.chess.com"]

[Event "Titled Tuesday Blitz September 20 Late 2022"]
[White "Girel, Joseph"]
[Black "Terry, Renato"]
[WhiteFideId "36033561"]
[BlackFideId "3803457"]
[WhiteElo "2763"]
[BlackElo "2948"]
[Result "0-1"]
[Round "11"]
[TimeControl "180+1"]
[Date "2022.09.20"]
[WhiteClock "0:00:03"]
[BlackClock "0:00:13"]

1. d4 {[%clk 0:02:59]}  d5 {[%clk 0:02:55]} 2. c4 {[%clk 0:02:59]}  e5 {[%clk 0:02:52]} 3. dxe5 {[%clk 0:02:58]}  d4 {[%clk 0:02:52]} 4. Nf3 {[%clk 0:02:58]}  Nc6 {[%clk 0:02:52]} 5. g3 {[%clk 0:02:58]}  Nge7 {[%clk 0:02:46]} 6. Bg2 {[%clk 0:02:55]}  Ng6 {[%clk 0:02:46]} 7. O-O {[%clk 0:02:55]}  Ngxe5 {[%clk 0:02:43]} 8. Nbd2 {[%clk 0:02:55]}  Be7 {[%clk 0:02:38]} 9. b3 {[%clk 0:02:51]}  O-O {[%clk 0:02:36]} 10. Bb2 {[%clk 0:02:51]}  Bf6 {[%clk 0:02:33]} 11. Nxe5 {[%clk 0:02:51]}  Bxe5 {[%clk 0:02:31]} 12. Nf3 {[%clk 0:02:50]}  Bf6 {[%clk 0:02:31]} 13. Qd2 {[%clk 0:02:50]}  Re8 {[%clk 0:02:29]} 14. Rad1 {[%clk 0:02:50]}  Bg4 {[%clk 0:02:28]} 15. h3 {[%clk 0:02:47]}  Bh5 {[%clk 0:02:28]} 16. g4 {[%clk 0:02:44]}  Bg6 {[%clk 0:02:28]} 17. Nxd4 {[%clk 0:02:40]}  Nxd4 {[%clk 0:02:23]} 18. Bxd4 {[%clk 0:02:38]}  Bxd4 {[%clk 0:02:23]} 19. Qxd4 {[%clk 0:02:38]}  Qxd4 {[%clk 0:02:23]} 20. Rxd4 {[%clk 0:02:37]}  Rxe2 {[%clk 0:02:24]} 21. Bxb7 {[%clk 0:02:37]}  Rb8 {[%clk 0:02:24]} 22. Rfd1 {[%clk 0:02:36]}  Kf8 {[%clk 0:02:16]} 23. Bc6 {[%clk 0:02:27]}  Rxa2 {[%clk 0:02:13]} 24. Rd8+ {[%clk 0:02:21]}  Rxd8 {[%clk 0:02:13]} 25. Rxd8+ {[%clk 0:02:21]}  Ke7 {[%clk 0:02:14]} 26. Rd7+ {[%clk 0:02:21]}  Ke6 {[%clk 0:02:15]} 27. Rxc7 {[%clk 0:02:21]}  Kd6 {[%clk 0:02:15]} 28. Rc8 {[%clk 0:02:18]}  Rb2 {[%clk 0:01:57]} 29. Ba4 {[%clk 0:02:15]}  Be4 {[%clk 0:01:57]} 30. f4 {[%clk 0:01:48]}  g5 {[%clk 0:01:57]} 31. Rd8+ {[%clk 0:01:39]}  Kc5 {[%clk 0:01:53]} 32. fxg5 {[%clk 0:01:39]}  Rg2+ {[%clk 0:01:48]} 33. Kf1 {[%clk 0:01:38]}  Rh2 {[%clk 0:01:49]} 34. Rd7 {[%clk 0:01:29]}  Bg6 {[%clk 0:01:46]} 35. Rxa7 {[%clk 0:01:27]}  Kd4 {[%clk 0:01:40]} 36. Re7 {[%clk 0:01:22]}  Be4 {[%clk 0:01:36]} 37. Kg1 {[%clk 0:00:50]}  Rg2+ {[%clk 0:01:27]} 38. Kf1 {[%clk 0:00:50]}  Rh2 {[%clk 0:01:26]} 39. Kg1 {[%clk 0:00:49]}  Rg2+ {[%clk 0:01:26]} 40. Kf1 {[%clk 0:00:45]}  Rb2 {[%clk 0:01:15]} 41. Rxf7 {[%clk 0:00:35]}  Ke3 {[%clk 0:01:15]} 42. Kg1 {[%clk 0:00:35]}  Rg2+ {[%clk 0:01:07]} 43. Kf1 {[%clk 0:00:34]}  Rh2 {[%clk 0:01:06]} 44. Ke1 {[%clk 0:00:31]}  Rb2 {[%clk 0:00:54]} 45. b4 {[%clk 0:00:27]}  Re2+ {[%clk 0:00:39]} 46. Kd1 {[%clk 0:00:22]}  Ra2 {[%clk 0:00:38]} 47. Kc1 {[%clk 0:00:11]}  Rxa4 {[%clk 0:00:38]} 48. Kb2 {[%clk 0:00:09]}  Rxb4+ {[%clk 0:00:37]} 49. Kc3 {[%clk 0:00:10]}  Rb1 {[%clk 0:00:35]} 50. h4 {[%clk 0:00:10]}  Rg1 {[%clk 0:00:31]} 51. h5 {[%clk 0:00:10]}  Rxg4 {[%clk 0:00:31]} 52. g6 {[%clk 0:00:10]}  hxg6 {[%clk 0:00:32]} 53. hxg6 {[%clk 0:00:10]}  Rxg6 {[%clk 0:00:29]} 54. Re7 {[%clk 0:00:11]}  Rg1 {[%clk 0:00:28]} 55. Re8 {[%clk 0:00:11]}  Rb1 {[%clk 0:00:27]} 56. Re7 {[%clk 0:00:11]}  Rc1+ {[%clk 0:00:27]} 57. Kb4 {[%clk 0:00:10]}  Kd4 {[%clk 0:00:28]} 58. Rd7+ {[%clk 0:00:10]}  Ke5 {[%clk 0:00:28]} 59. Re7+ {[%clk 0:00:10]}  Kf4 {[%clk 0:00:28]} 60. Rf7+ {[%clk 0:00:10]}  Bf5 {[%clk 0:00:28]} 61. Re7 {[%clk 0:00:11]}  Kg5 {[%clk 0:00:27]} 62. c5 {[%clk 0:00:11]}  Kf6 {[%clk 0:00:27]} 63. Re8 {[%clk 0:00:11]}  Be6 {[%clk 0:00:26]} 64. Rd8 {[%clk 0:00:10]}  Ke5 {[%clk 0:00:25]} 65. Rd2 {[%clk 0:00:10]}  Rb1+ {[%clk 0:00:25]} 66. Ka5 {[%clk 0:00:09]}  Bd5 {[%clk 0:00:22]} 67. Re2+ {[%clk 0:00:09]}  Kd4 {[%clk 0:00:23]} 68. Rc2 {[%clk 0:00:08]}  Bc6 {[%clk 0:00:22]} 69. Ka6 {[%clk 0:00:09]}  Kd5 {[%clk 0:00:21]} 70. Ka5 {[%clk 0:00:08]}  Ke6 {[%clk 0:00:21]} 71. Ka6 {[%clk 0:00:09]}  Kd7 {[%clk 0:00:20]} 72. Ka5 {[%clk 0:00:09]}  Rb5+ {[%clk 0:00:18]} 73. Ka6 {[%clk 0:00:08]}  Kc7 {[%clk 0:00:18]} 74. Rh2 {[%clk 0:00:05]}  Rb4 {[%clk 0:00:18]} 75. Rh7+ {[%clk 0:00:03]}  Bd7 {[%clk 0:00:18]} 76. c6 {[%clk 0:00:03]}  Kxc6 {[%clk 0:00:17]} 77. Ka5 {[%clk 0:00:03]}  Rc4 {[%clk 0:00:13]} 78. Rh6+ {[%clk 0:00:03]}  Kc7 {[%clk 0:00:13]} 0-1


[Site "https://www.chess.com"]

[Event "Titled Tuesday Blitz September 20 Late 2022"]
[White "Goroshkov, Maksym"]
[Black "Forgacs, Attila Jr."]
[WhiteFideId "14142716"]
[BlackFideId "773654"]
[WhiteElo "2257"]
[BlackElo "2062"]
[Result "0-1"]
[Round "11"]
[TimeControl "180+1"]
[Date "2022.09.20"]
[WhiteClock "0:00:27"]
[BlackClock "0:00:14"]

1. e4 {[%clk 0:03:00]}  e5 {[%clk 0:02:59]} 2. Nf3 {[%clk 0:02:59]}  Nc6 {[%clk 0:03:00]} 3. Bb5 {[%clk 0:02:59]}  a6 {[%clk 0:03:00]} 4. Ba4 {[%clk 0:03:00]}  Nf6 {[%clk 0:02:59]} 5. O-O {[%clk 0:03:00]}  Be7 {[%clk 0:03:00]} 6. Re1 {[%clk 0:03:00]}  b5 {[%clk 0:03:00]} 7. Bb3 {[%clk 0:03:01]}  O-O {[%clk 0:03:01]} 8. c3 {[%clk 0:03:01]}  d5 {[%clk 0:03:01]} 9. exd5 {[%clk 0:03:01]}  Nxd5 {[%clk 0:03:02]} 10. d4 {[%clk 0:03:01]}  exd4 {[%clk 0:03:02]} 11. cxd4 {[%clk 0:03:01]}  Bf6 {[%clk 0:02:53]} 12. Nc3 {[%clk 0:03:00]}  Nb6 {[%clk 0:02:47]} 13. d5 {[%clk 0:02:59]}  Nb4 {[%clk 0:02:30]} 14. Ne5 {[%clk 0:02:54]}  Bb7 {[%clk 0:02:17]} 15. Ng4 {[%clk 0:02:33]}  Bxc3 {[%clk 0:02:11]} 16. bxc3 {[%clk 0:02:31]}  N4xd5 {[%clk 0:02:11]} 17. Ba3 {[%clk 0:02:31]}  Re8 {[%clk 0:02:06]} 18. Qd4 {[%clk 0:02:29]}  Qg5 {[%clk 0:01:59]} 19. f3 {[%clk 0:02:05]}  h5 {[%clk 0:01:47]} 20. Nf2 {[%clk 0:02:03]}  Nf4 {[%clk 0:01:44]} 21. g3 {[%clk 0:01:58]}  Ne2+ {[%clk 0:01:38]} 22. Rxe2 {[%clk 0:01:57]}  Rxe2 {[%clk 0:01:39]} 23. Qd3 {[%clk 0:01:43]}  Rae8 {[%clk 0:01:36]} 24. Ne4 {[%clk 0:01:42]}  Qe3+ {[%clk 0:01:26]} 25. Qxe3 {[%clk 0:01:42]}  Rxe3 {[%clk 0:01:27]} 26. Ng5 {[%clk 0:01:39]}  Bd5 {[%clk 0:01:20]} 27. Bc5 {[%clk 0:01:39]}  Re1+ {[%clk 0:01:03]} 28. Rxe1 {[%clk 0:01:38]}  Rxe1+ {[%clk 0:01:04]} 29. Kf2 {[%clk 0:01:39]}  Bxb3 {[%clk 0:01:01]} 30. Kxe1 {[%clk 0:01:32]}  Bxa2 {[%clk 0:00:59]} 31. Bxb6 {[%clk 0:01:31]}  cxb6 {[%clk 0:01:00]} 32. Ne4 {[%clk 0:01:30]}  Bd5 {[%clk 0:00:53]} 33. Nd2 {[%clk 0:01:24]}  a5 {[%clk 0:00:53]} 34. Ke2 {[%clk 0:01:24]}  a4 {[%clk 0:00:47]} 35. Nb1 {[%clk 0:01:24]}  f6 {[%clk 0:00:35]} 36. Na3 {[%clk 0:01:22]}  Bc4+ {[%clk 0:00:30]} 37. Ke3 {[%clk 0:01:22]}  Kf7 {[%clk 0:00:31]} 38. Ke4 {[%clk 0:01:11]}  Ke6 {[%clk 0:00:30]} 39. f4 {[%clk 0:01:11]}  g6 {[%clk 0:00:28]} 40. h3 {[%clk 0:01:09]}  Kd6 {[%clk 0:00:27]} 41. Kd4 {[%clk 0:01:09]}  g5 {[%clk 0:00:20]} 42. fxg5 {[%clk 0:01:05]}  fxg5 {[%clk 0:00:20]} 43. h4 {[%clk 0:01:06]}  gxh4 {[%clk 0:00:20]} 44. gxh4 {[%clk 0:01:07]}  Ke6 {[%clk 0:00:20]} 45. Ke4 {[%clk 0:01:07]}  Kf6 {[%clk 0:00:20]} 46. Kf4 {[%clk 0:01:07]}  Bd3 {[%clk 0:00:21]} 47. Ke3 {[%clk 0:01:07]}  Bg6 {[%clk 0:00:14]} 48. Kf4 {[%clk 0:01:01]}  Be8 {[%clk 0:00:14]} 49. Nc2 {[%clk 0:01:01]}  Bd7 {[%clk 0:00:13]} 50. Na3 {[%clk 0:01:01]}  Bc6 {[%clk 0:00:11]} 51. Nc2 {[%clk 0:01:00]}  Ke6 {[%clk 0:00:11]} 52. Ke3 {[%clk 0:00:40]}  Kd5 {[%clk 0:00:09]} 53. Kd3 {[%clk 0:00:40]}  Kc5 {[%clk 0:00:09]} 54. Nb4 {[%clk 0:00:36]}  a3 {[%clk 0:00:08]} 55. Kc2 {[%clk 0:00:36]}  Bd5 {[%clk 0:00:07]} 56. Nd3+ {[%clk 0:00:19]}  Kd6 {[%clk 0:00:05]} 57. Nf4 {[%clk 0:00:20]}  Bf3 {[%clk 0:00:04]} 58. Kb3 {[%clk 0:00:20]}  Ke5 {[%clk 0:00:03]} 59. Nd3+ {[%clk 0:00:18]}  Kf5 {[%clk 0:00:02]} 60. Kxa3 {[%clk 0:00:15]}  Kg4 {[%clk 0:00:03]} 61. Ne5+ {[%clk 0:00:15]}  Kf4 {[%clk 0:00:03]} 62. Nd7 {[%clk 0:00:15]}  Kg3 {[%clk 0:00:04]} 63. Nxb6 {[%clk 0:00:15]}  Kxh4 {[%clk 0:00:04]} 64. Kb4 {[%clk 0:00:15]}  Be2 {[%clk 0:00:04]} 65. Nd7 {[%clk 0:00:16]}  Kg3 {[%clk 0:00:05]} 66. Nf6 {[%clk 0:00:16]}  h4 {[%clk 0:00:05]} 67. Ne4+ {[%clk 0:00:16]}  Kg2 {[%clk 0:00:05]} 68. Ng5 {[%clk 0:00:16]}  h3 {[%clk 0:00:05]} 69. Nxh3 {[%clk 0:00:16]}  Kxh3 {[%clk 0:00:05]} 70. Kc5 {[%clk 0:00:17]}  Bc4 {[%clk 0:00:06]} 71. Kd4 {[%clk 0:00:18]}  Kg4 {[%clk 0:00:06]} 72. Kc5 {[%clk 0:00:19]}  Kf5 {[%clk 0:00:07]} 73. Kd4 {[%clk 0:00:20]}  Ke6 {[%clk 0:00:08]} 74. Kc5 {[%clk 0:00:21]}  Ke5 {[%clk 0:00:08]} 75. Kb4 {[%clk 0:00:21]}  Ke4 {[%clk 0:00:09]} 76. Kc5 {[%clk 0:00:22]}  Kd3 {[%clk 0:00:09]} 77. Kb4 {[%clk 0:00:23]}  Kc2 {[%clk 0:00:10]} 78. Kc5 {[%clk 0:00:24]}  Kxc3 {[%clk 0:00:11]} 79. Kb6 {[%clk 0:00:24]}  b4 {[%clk 0:00:11]} 80. Ka5 {[%clk 0:00:25]}  b3 {[%clk 0:00:12]} 81. Ka4 {[%clk 0:00:26]}  b2 {[%clk 0:00:13]} 82. Ka5 {[%clk 0:00:26]}  b1=Q {[%clk 0:00:13]} 83. Ka4 {[%clk 0:00:27]}  Qb3+ {[%clk 0:00:13]} 84. Ka5 {[%clk 0:00:27]}  Qb5# {[%clk 0:00:14]} 0-1


[Site "https://www.chess.com"]

[Event "Titled Tuesday Blitz September 20 Late 2022"]
[White "Jorajuria Mendoza, Algol"]
[Black "Korchmar, Vasiliy"]
[WhiteFideId "5128897"]
[BlackFideId "24131750"]
[WhiteElo "1600"]
[BlackElo "2370"]
[Result "0-1"]
[Round "11"]
[TimeControl "180+1"]
[Date "2022.09.20"]
[WhiteClock "0:00:05"]
[BlackClock "0:00:04"]

1. e4 {[%clk 0:02:44]}  c5 {[%clk 0:02:59]} 2. Nf3 {[%clk 0:02:43]}  d6 {[%clk 0:02:59]} 3. d4 {[%clk 0:02:43]}  cxd4 {[%clk 0:03:00]} 4. Qxd4 {[%clk 0:02:44]}  Nc6 {[%clk 0:03:00]} 5. Bb5 {[%clk 0:02:44]}  a6 {[%clk 0:03:01]} 6. Bxc6+ {[%clk 0:02:43]}  bxc6 {[%clk 0:03:02]} 7. Qa4 {[%clk 0:02:42]}  Bd7 {[%clk 0:03:01]} 8. c4 {[%clk 0:02:38]}  g6 {[%clk 0:02:59]} 9. e5 {[%clk 0:02:31]}  Bg7 {[%clk 0:02:57]} 10. exd6 {[%clk 0:02:31]}  exd6 {[%clk 0:02:58]} 11. O-O {[%clk 0:02:31]}  Ne7 {[%clk 0:02:58]} 12. Nc3 {[%clk 0:02:22]}  O-O {[%clk 0:02:57]} 13. Bf4 {[%clk 0:02:22]}  d5 {[%clk 0:02:42]} 14. cxd5 {[%clk 0:02:06]}  cxd5 {[%clk 0:02:42]} 15. Qb3 {[%clk 0:02:07]}  d4 {[%clk 0:02:32]} 16. Nd5 {[%clk 0:01:55]}  Be6 {[%clk 0:02:12]} 17. Nxe7+ {[%clk 0:01:53]}  Qxe7 {[%clk 0:02:13]} 18. Qd3 {[%clk 0:01:50]}  Bf5 {[%clk 0:02:12]} 19. Qd2 {[%clk 0:01:50]}  Rfd8 {[%clk 0:01:59]} 20. Rfe1 {[%clk 0:01:47]}  Qb7 {[%clk 0:01:57]} 21. Be5 {[%clk 0:01:39]}  Be4 {[%clk 0:01:49]} 22. Ng5 {[%clk 0:01:08]}  Bxg2 {[%clk 0:01:38]} 23. f3 {[%clk 0:00:59]}  Bxf3 {[%clk 0:01:35]} 24. Bxg7 {[%clk 0:00:58]}  Kxg7 {[%clk 0:01:35]} 25. Rf1 {[%clk 0:00:57]}  Bd5 {[%clk 0:01:23]} 26. Qxd4+ {[%clk 0:00:57]}  Kg8 {[%clk 0:01:24]} 27. Rad1 {[%clk 0:00:38]}  Qc7 {[%clk 0:00:47]} 28. Qh4 {[%clk 0:00:31]}  h5 {[%clk 0:00:38]} 29. Qf2 {[%clk 0:00:23]}  Qe5 {[%clk 0:00:19]} 30. h4 {[%clk 0:00:14]}  Ra7 {[%clk 0:00:11]} 31. Rfe1 {[%clk 0:00:14]}  Qd6 {[%clk 0:00:02]} 32. Rxd5 {[%clk 0:00:09]}  Qxd5 {[%clk 0:00:02]} 33. Qxa7 {[%clk 0:00:09]}  Qc4 {[%clk 0:00:01]} 34. Qe7 {[%clk 0:00:09]}  Qg4+ {[%clk 0:00:01]} 35. Kf2 {[%clk 0:00:09]}  Qxh4+ {[%clk 0:00:02]} 36. Kg1 {[%clk 0:00:07]}  Qg3+ {[%clk 0:00:02]} 37. Kh1 {[%clk 0:00:07]}  Qh4+ {[%clk 0:00:03]} 38. Kg1 {[%clk 0:00:07]}  Rf8 {[%clk 0:00:03]} 39. Qf6 {[%clk 0:00:05]}  Qg4+ {[%clk 0:00:03]} 40. Kh1 {[%clk 0:00:05]}  Qh4+ {[%clk 0:00:04]} 41. Kg2 {[%clk 0:00:05]}  Qxe1 {[%clk 0:00:04]} 0-1


[Site "https://www.chess.com"]